Workbook

Sheet Instructions
D3: Add Sensitivities to the Financial Model -- this is already completed
D5: Add Sheet and Inputs for Number of Variables and for Scenario Number
D7: Copy and Transpose Titles of the Variables
D9: Create a series of percentages with a middle value of 100% -- e.g. begin with 160% and subtract 10% until you get to 40%
D11: Copy the Series to each column with different variables
D13: Use Index Key with Scenarios
D15: Create Counter for Variable Number
D17: Create TRUE/FALSE Test
D19: Create If test that uses scenario when true and 100% when false
D21: Use TRANSPOSE Command to transfer variables
D23: Make Two Way Data Table using the variable numbers for the row and the scenarios for the column
D25: Insert vertical and horizontal titles on the table
D27: Use SHIFT,ALT,--> to hide the vertical and horizontal numbers and Use F11 to Make Graph; Modify type to be line
D29: Change the inputs to reflect realistic ranges of different variables -- all variables should be centred on a value of 100%
D31: Change the style of the chart using the custom charts

Sheet Financial Model
F2: Base | J2: Sensitivity
D4: Investment | F4: 1000 | H4: =D4&"_"&$J$2 -> Investment_Sensitivity | J4: =TRANSPOSE(Spider!D26:J26) -> 1 | M4: Note: Colours made from the fm.xls file
D5: Price | F5: 10 | H5: Price_Sensitivity | J5: 1.15
D6: Quantity | F6: 15 | H6: Quantity_Sensitivity | J6: 1
D7: Cost | F7: 5 | H7: Cost_Sensitivity | J7: 1
D8: Inflation | F8: 0.05 | H8: Inflation_Sensitivity | J8: 1
D9: Terminal | F9: 3000 | H9: Terminal_Sensitivity | J9: 1
D10: Life | F10: 10 | H10: Life_Sensitivity | J10: 1
F13: Base Investment | H13: =Investment -> 1000
F14: Investment Sensitivity | H14: =Investment_Sensitivity -> 1
F15: Adjusted Investment | H15: =H13*H14 -> 1000
D18: Very Simple Financial Model
D20: Period | E20: Life Switch | F20: Inflation Rate | G20: Inflation Sensitivity | H20: Adjusted Inflation Rate | I20: Base Price | J20: Price Sensitivity | K20: Adjusted Price | L20: Base Quantity | M20: Quantity Sensitivty | N20: Adjusted Quantity | O20: Base Cost | P20: Cost Sensitivity | Q20: Adjusted Cost | R20: Base Life | S20: Life Sensitivity | T20: Adjusted Life | U20: Base Terminal | V20: Terminal Sensitivity | W20: Adjusted Sensitivity | X20: Cash Flow
D22: Period | E22: Life | H22: Infalation | I22: Investment | J22: Price | K22: Quantity | N22: Cost | Q22: Terminal | W22: Cash Flow
D23: 0 | E23: =D23<=Life*Life_Sensitivity -> TRUE | F23: =Inflation -> 0.05 | G23: =Inflation_Sensitivity -> 1 | H23: 1 | X23: =-H15 -> -1000
D24: =D23+1 -> 1 | E24: TRUE | F24: =F23*(1+Inflation) -> 0.0525 | G24: 1 | H24: =H23*(1+F24*G24) -> 1.0525 | I24: =Price -> 10 | J24: =Price_Sensitivity -> 1.15 | K24: =I24*H24*J24 -> 12.10375 | L24: =Quantity -> 15 | M24: =Quantity_Sensitivity -> 1 | N24: =L24*M24 -> 15 | O24: =Cost -> 5 | P24: =Cost_Sensitivity -> 1 | Q24: =O24*P24*H24 -> 5.2625 | R24: =Life -> 10 | S24: =Life_Sensitivity -> 1 | T24: =ROUND(S24*R24,0) -> 10 | U24: =Terminal -> 3000 | V24: =Terminal_Sensitivity -> 1 | W24: =(T24=D24)*U24*V24 -> 0 | X24: =(K24*N24-Q24+W24)*E24 -> 176.29375
D25: 2 | E25: TRUE | F25: 0.055125 | G25: 1 | H25: 1.110519063 | I25: 10 | J25: 1.15 | K25: =I25*H25*J25 -> 12.77096922 | L25: 15 | M25: 1 | N25: =L25*M25 -> 15 | O25: 5 | P25: 1 | Q25: =O25*P25*H25 -> 5.552595313 | R25: 10 | S25: 1 | T25: =ROUND(S25*R25,0) -> 10 | U25: 3000 | V25: 1 | W25: =(T25=D25)*U25*V25 -> 0 | X25: =(K25*N25-Q25+W25)*E25 -> 186.011943
D26: 3 | E26: TRUE | F26: 0.05788125 | G26: 1 | H26: 1.174797294 | I26: 10 | J26: 1.15 | K26: 13.51016888 | L26: 15 | M26: 1 | N26: 15 | O26: 5 | P26: 1 | Q26: 5.87398647 | R26: 10 | S26: 1 | T26: 10 | U26: 3000 | V26: 1 | W26: 0 | X26: 196.7785467
D27: 4 | E27: TRUE | F27: 0.0607753125 | G27: 1 | H27: 1.246195967 | I27: 10 | J27: 1.15 | K27: 14.33125362 | L27: 15 | M27: 1 | N27: 15 | O27: 5 | P27: 1 | Q27: 6.230979833 | R27: 10 | S27: 1 | T27: 10 | U27: 3000 | V27: 1 | W27: 0 | X27: 208.7378244
D28: 5 | E28: TRUE | F28: 0.06381407813 | G28: 1 | H28: 1.325720813 | I28: 10 | J28: 1.15 | K28: 15.24578935 | L28: 15 | M28: 1 | N28: 15 | O28: 5 | P28: 1 | Q28: 6.628604067 | R28: 10 | S28: 1 | T28: 10 | U28: 3000 | V28: 1 | W28: 0 | X28: 222.0582362
D29: 6 | E29: TRUE | F29: 0.06700478203 | G29: 1 | H29: 1.414550448 | I29: 10 | J29: 1.15 | K29: 16.26733015 | L29: 15 | M29: 1 | N29: 15 | O29: 5 | P29: 1 | Q29: 7.072752238 | R29: 10 | S29: 1 | T29: 10 | U29: 3000 | V29: 1 | W29: 0 | X29: 236.9372
D30: 7 | E30: TRUE | F30: 0.07035502113 | G30: 1 | H30: 1.514071174 | I30: 10 | J30: 1.15 | K30: 17.4118185 | L30: 15 | M30: 1 | N30: 15 | O30: 5 | P30: 1 | Q30: 7.570355871 | R30: 10 | S30: 1 | T30: 10 | U30: 3000 | V30: 1 | W30: 0 | X30: 253.6069217
D31: 8 | E31: TRUE | F31: 0.07387277219 | G31: 1 | H31: 1.625919809 | I31: 10 | J31: 1.15 | K31: 18.6980778 | L31: 15 | M31: 1 | N31: 15 | O31: 5 | P31: 1 | Q31: 8.129599046 | R31: 10 | S31: 1 | T31: 10 | U31: 3000 | V31: 1 | W31: 0 | X31: 272.341568
D32: 9 | E32: TRUE | F32: 0.0775664108 | G32: 1 | H32: 1.752036573 | I32: 10 | J32: 1.15 | K32: 20.14842059 | L32: 15 | M32: 1 | N32: 15 | O32: 5 | P32: 1 | Q32: 8.760182865 | R32: 10 | S32: 1 | T32: 10 | U32: 3000 | V32: 1 | W32: 0 | X32: 293.466126
D33: 10 | E33: TRUE | F33: 0.08144473134 | G33: 1 | H33: 1.894730721 | I33: 10 | J33: 1.15 | K33: 21.78940329 | L33: 15 | M33: 1 | N33: 15 | O33: 5 | P33: 1 | Q33: 9.473653605 | R33: 10 | S33: 1 | T33: 10 | U33: 3000 | V33: 1 | W33: 3000 | X33: 3317.367396
D34: 11 | E34: FALSE | F34: 0.08551696791 | G34: 1 | H34: 2.056762347 | I34: 10 | J34: 1.15 | K34: 23.65276699 | L34: 15 | M34: 1 | N34: 15 | O34: 5 | P34: 1 | Q34: 10.28381174 | R34: 10 | S34: 1 | T34: 10 | U34: 3000 | V34: 1 | W34: 0 | X34: 0
D35: 12 | E35: FALSE | F35: 0.0897928163 | G35: 1 | H35: 2.241444831 | I35: 10 | J35: 1.15 | K35: 25.77661555 | L35: 15 | M35: 1 | N35: 15 | O35: 5 | P35: 1 | Q35: 11.20722415 | R35: 10 | S35: 1 | T35: 10 | U35: 3000 | V35: 1 | W35: 0 | X35: 0
D36: 13 | E36: FALSE | F36: 0.09428245712 | G36: 1 | H36: 2.452773757 | I36: 10 | J36: 1.15 | K36: 28.20689821 | L36: 15 | M36: 1 | N36: 15 | O36: 5 | P36: 1 | Q36: 12.26386878 | R36: 10 | S36: 1 | T36: 10 | U36: 3000 | V36: 1 | W36: 0 | X36: 0
D37: 14 | E37: FALSE | F37: 0.09899657997 | G37: 1 | H37: 2.69558997 | I37: 10 | J37: 1.15 | K37: 30.99928466 | L37: 15 | M37: 1 | N37: 15 | O37: 5 | P37: 1 | Q37: 13.47794985 | R37: 10 | S37: 1 | T37: 10 | U37: 3000 | V37: 1 | W37: 0 | X37: 0
D38: 15 | E38: FALSE | F38: 0.103946409 | G38: 1 | H38: 2.975786868 | I38: 10 | J38: 1.15 | K38: 34.22154898 | L38: 15 | M38: 1 | N38: 15 | O38: 5 | P38: 1 | Q38: 14.87893434 | R38: 10 | S38: 1 | T38: 10 | U38: 3000 | V38: 1 | W38: 0 | X38: 0
D39: 16 | E39: FALSE | F39: 0.1091437294 | G39: 1 | H39: 3.300575345 | I39: 10 | J39: 1.15 | K39: 37.95661646 | L39: 15 | M39: 1 | N39: 15 | O39: 5 | P39: 1 | Q39: 16.50287672 | R39: 10 | S39: 1 | T39: 10 | U39: 3000 | V39: 1 | W39: 0 | X39: 0
D40: 17 | E40: FALSE | F40: 0.1146009159 | G40: 1 | H40: 3.678824302 | I40: 10 | J40: 1.15 | K40: 42.30647947 | L40: 15 | M40: 1 | N40: 15 | O40: 5 | P40: 1 | Q40: 18.39412151 | R40: 10 | S40: 1 | T40: 10 | U40: 3000 | V40: 1 | W40: 0 | X40: 0
D41: 18 | E41: FALSE | F41: 0.1203309617 | G41: 1 | H41: 4.121500768 | I41: 10 | J41: 1.15 | K41: 47.39725883 | L41: 15 | M41: 1 | N41: 15 | O41: 5 | P41: 1 | Q41: 20.60750384 | R41: 10 | S41: 1 | T41: 10 | U41: 3000 | V41: 1 | W41: 0 | X41: 0
D42: 19 | E42: FALSE | F42: 0.1263475098 | G42: 1 | H42: 4.642242127 | I42: 10 | J42: 1.15 | K42: 53.38578446 | L42: 15 | M42: 1 | N42: 15 | O42: 5 | P42: 1 | Q42: 23.21121063 | R42: 10 | S42: 1 | T42: 10 | U42: 3000 | V42: 1 | W42: 0 | X42: 0
W46: IRR | X46: =IRR(X23:X42) -> 0.2655830158
W48: Rate | X48: 0.1
W50: NPV | X50: =NPV(X48,X23:X42) -> 1396.974266

Sheet Spider
C3: Variable Number | E3: 2 | M3: IRR | N3: ='Financial Model'!X46 -> 0.2655830158
C4: Scenario Number | E4: 1 | M4: NPV | N4: ='Financial Model'!X50 -> 1396.974266
D7: 1 | E7: =D7+1 -> 2 | F7: 3 | G7: 4 | H7: 5 | I7: 6 | J7: 7 | N7: Investment | O7: Price | P7: Quantity | Q7: Cost | R7: Inflation | S7: Terminal | T7: Life
D8: Investment | E8: Price | F8: Quantity | G8: Cost | H8: Inflation | I8: Terminal | J8: Life | M8: =N4 -> 1396.974266 | N8: 1 | O8: =N8+1 -> 2 | P8: 3 | Q8: 4 | R8: 5 | S8: 6 | T8: 7
B9: 1 | C9: 1.6 | D9: 1.6 | E9: 1.15 | F9: 1.3 | G9: 1.6 | H9: 1.3 | I9: 1.6 | J9: 1.6 | L9: Very High | M9: 1 | N9: 682.9935821 | O9: 1396.974266 | P9: 1565.500405 | Q9: 1205.977976 | R9: 1332.020073 | S9: 1859.337147 | T9: 1335.482576
B10: =B9+1 -> 2 | C10: =C9-10% -> 1.5 | D10: =D9-10% -> 1.5 | E10: =E9-2.5% -> 1.125 | F10: =F9-5% -> 1.25 | G10: =G9-10% -> 1.5 | H10: =H9-5% -> 1.25 | I10: =I9-10% -> 1.5 | J10: =J9-10% -> 1.5 | M10: =M9+1 -> 2 | N10: 773.902673 | O10: 1368.886576 | P10: 1509.325025 | Q10: 1209.723001 | R10: 1313.988006 | S10: 1754.188977 | T10: 1300.150797
B11: =B10+1 -> 3 | C11: 1.4 | D11: 1.4 | E11: 1.1 | F11: 1.2 | G11: 1.4 | H11: 1.2 | I11: 1.4 | J11: 1.4 | M11: 3 | N11: 864.8117639 | O11: 1340.798887 | P11: 1453.149646 | Q11: 1213.468026 | R11: 1296.271411 | S11: 1649.040807 | T11: 1271.534939
B12: 4 | C12: 1.3 | D12: 1.3 | E12: 1.075 | F12: 1.15 | G12: 1.3 | H12: 1.15 | I12: 1.3 | J12: 1.3 | L12: High | M12: 4 | N12: 955.7208548 | O12: 1312.711197 | P12: 1396.974266 | Q12: 1217.213052 | R12: 1278.864636 | S12: 1543.892637 | T12: 1249.783647
B13: 5 | C13: 1.2 | D13: 1.2 | E13: 1.05 | F13: 1.1 | G13: 1.2 | H13: 1.1 | I13: 1.2 | J13: 1.2 | M13: 5 | N13: 1046.629946 | O13: 1284.623507 | P13: 1340.798887 | Q13: 1220.958077 | R13: 1261.762123 | S13: 1438.744467 | T13: 1235.128685
B14: 6 | C14: 1.1 | D14: 1.1 | E14: 1.025 | F14: 1.05 | G14: 1.1 | H14: 1.05 | I14: 1.1 | J14: 1.1 | M14: 6 | N14: 1137.539037 | O14: 1256.535817 | P14: 1284.623507 | Q14: 1224.703102 | R14: 1244.95841 | S14: 1333.596297 | T14: 1227.884323
B15: 7 | C15: 1 | D15: 1 | E15: 1 | F15: 1 | G15: 1 | H15: 1 | I15: 1 | J15: 1 | L15: Base | M15: 7 | N15: 1228.448128 | O15: 1228.448128 | P15: 1228.448128 | Q15: 1228.448128 | R15: 1228.448128 | S15: 1228.448128 | T15: 1228.448128
B16: 8 | C16: 0.9 | D16: 0.9 | E16: 0.975 | F16: 0.95 | G16: 0.9 | H16: 0.95 | I16: 0.9 | J16: 0.9 | M16: 8 | N16: 1319.357218 | O16: 1200.360438 | P16: 1172.272748 | Q16: 1232.193153 | R16: 1212.225997 | S16: 1123.299958 | T16: 1237.303021
B17: 9 | C17: 0.8 | D17: 0.8 | E17: 0.95 | F17: 0.9 | G17: 0.8 | H17: 0.9 | I17: 0.8 | J17: 0.8 | M17: 9 | N17: 1410.266309 | O17: 1172.272748 | P17: 1116.097368 | Q17: 1235.938178 | R17: 1196.28683 | S17: 1018.151788 | T17: 1255.020546
B18: 10 | C18: 0.7 | D18: 0.7 | E18: 0.925 | F18: 0.85 | G18: 0.7 | H18: 0.85 | I18: 0.7 | J18: 0.7 | L18: Low | M18: 10 | N18: 1501.1754 | O18: 1144.185058 | P18: 1059.921989 | Q18: 1239.683203 | R18: 1180.625525 | S18: 913.003618 | T18: 1282.265268
B19: 11 | C19: 0.6 | D19: 0.6 | E19: 0.9 | F19: 0.8 | G19: 0.6 | H19: 0.8 | I19: 0.6 | J19: 0.6 | M19: 11 | N19: 1592.084491 | O19: 1116.097368 | P19: 1003.746609 | Q19: 1243.428229 | R19: 1165.237071 | S19: 807.8554482 | T19: 1319.800302
B20: 12 | C20: 0.5 | D20: 0.5 | E20: 0.875 | F20: 0.75 | G20: 0.5 | H20: 0.75 | I20: 0.5 | J20: 0.5 | M20: 12 | N20: 1682.993582 | O20: 1088.009679 | P20: 947.5712297 | Q20: 1247.173254 | R20: 1150.116539 | S20: 702.7072783 | T20: 1368.493971
B21: 13 | C21: 0.4 | D21: 0.4 | E21: 0.85 | F21: 0.7 | G21: 0.4 | H21: 0.7 | I21: 0.4 | J21: 0.4 | L21: Very Low | M21: 13 | N21: 1773.902673 | O21: 1059.921989 | P21: 891.3958502 | Q21: 1250.918279 | R21: 1135.259088 | S21: 597.5591085 | T21: 1429.327598
D23: =INDEX(D9:D21,$E$4) -> 1.6 | E23: 1.15 | F23: 1.3 | G23: 1.6 | H23: 1.3 | I23: 1.6 | J23: 1.6
C24: Variable | D24: 1 | E24: 2 | F24: 3 | G24: 4 | H24: 5 | I24: 6 | J24: 7
C25: Boolean | D25: =D24=$E$3 -> FALSE | E25: TRUE | F25: FALSE | G25: FALSE | H25: FALSE | I25: FALSE | J25: FALSE
C26: Scenario | D26: =IF(D25,D23,100%) -> 1 | E26: 1.15 | F26: 1 | G26: 1 | H26: 1 | I26: 1 | J26: 1
